[Event "Eurasia Open Cup 2019"]
[Site "Ekaterinburg"]
[Date "2019.08.03"]
[Round "4.2"]
[White "Pridorozhni, Aleksei"]
[Black "Vokhidov, Shamsiddin"]
[Result "1-0"]
[ECO "B56"]
[WhiteElo "2586"]
[BlackElo "2515"]
[Annotator "ChessBase"]
[PlyCount "129"]
[EventDate "2019.07.31"]
[EventType "swiss"]
[EventCountry "RUS"]
[SourceTitle "playchess.com"]
[Source "ChessBase"]
[SourceQuality "1"]
[TimeControl "5400+30"]

1. e4 {[%emt 0:00:00]} c5 {[%emt 0:00:00]} 2. Nf3 {[%emt 0:00:00]} d6 {[%emt 0:00:41]} 3. d4 {[%emt 0:00:01]} cxd4 {[%emt 0:00:08]} 4. Nxd4 {[%emt 0:00:00]} Nf6 {[%emt 0:00:04]} 5. Nc3 {[%emt 0:00:00]} a6 {[%emt 0:00:11]} 6. Nb3 {[%emt 0:00:54]} Nc6 {[%emt 0:01:43]} 7. Be2 {[%emt 0:00:33]} e6 {[%emt 0:06:54]} 8. g4 {[%emt 0:02:36]} Be7 {[%emt 0:04:13]} 9. g5 {[%emt 0:02:02]} Nd7 {[%emt 0:00:13]} 10. h4 {[%emt 0:00:13]} b5 {[%emt 0:00:17]} 11. f4 {[%emt 0:01:16]} Bb7 {[%emt 0:03:29]} 12. Bf3 {[%emt 0:01:30]} b4 {[%emt 0:03:32]} 13. Ne2 {[%emt 0:00:16]} Nb6 {[%emt 0:02:33]} 14. Ned4 {[%emt 0:15:13]} Qc7 {[%emt 0:14:35]} 15. O-O {[%emt 0:28:36]} Nxd4 {[%emt 0:06:56]} 16. Nxd4 {[%emt 0:00:22]} Rc8 {[%emt 0:07:20]} 17. b3 {[%emt 0:05:00]} d5 {[%emt 0:05:47]} 18. e5 {[%emt 0:10:11]} Qc3 {[%emt 0:02:25]} 19. Rb1 {[%emt 0:00:06]} g6 {[%emt 0:02:06]} 20. Kg2 {[%emt 0:09:30]} Nd7 {[%emt 0:04:59]} 21. Bb2 {[%emt 0:02:05]} Qc7 {[%emt 0:01:10]} 22. Rc1 {[%emt 0:00:55]} Nc5 {[%emt 0:04:51]} 23. c3 {[%emt 0:01:05]} Qb6 {[%emt 0:02:46]} 24. cxb4 {[%emt 0:02:25]} Qxb4 {[%emt 0:00:06]} 25. a3 {[%emt 0:00:05]} Qb6 {[%emt 0:00:12]} 26. b4 {[%emt 0:00:10]} O-O {[%emt 0:04:46]} 27. h5 {[%emt 0:01:38]} Ne4 {[%emt 0:01:00]} 28. Rh1 {[%emt 0:03:27]} Rxc1 {[%emt 0:00:27]} 29. Qxc1 {[%emt 0:00:00]} Rc8 {[%emt 0:00:43]} 30. Qe1 {[%emt 0:00:00]} Bf8 {[%emt 0:00:20]} 31. Be2 {[%emt 0:06:21]} Rc4 {[%emt 0:03:43]} 32. Bxc4 {[%emt 0:01:32]} dxc4 {[%emt 0:00:00]} 33. Nf3 {[%emt 0:00:00]} c3 {[%emt 0:01:02]} 34. Bc1 {[%emt 0:00:00]} Qc6 {[%emt 0:03:19]} 35. Qe3 {[%emt 0:01:07]} Qc4 {[%emt 0:00:35]} 36. Rd1 {[%emt 0:01:35]} Qa2+ {[%emt 0:01:33]} 37. Kg1 {[%emt 0:00:28]} Ng3 {[%emt 0:02:47]} 38. h6 {[%emt 0:03:41]} Bd5 {[%emt 0:01:53]} 39. Re1 {[%emt 0:00:00]} Qc4 {[%emt 0:02:00]} 40. Nd4 {[%emt 0:01:01]} Ne4 {[%emt 0:00:43]} 41. Nc2 {[%emt 0:01:13]} Nxg5 {[%emt 0:00:44]} 42. Rd1 {[%emt 0:00:44]} Nf3+ {[%emt 0:00:18]} 43. Kf2 {[%emt 0:00:45]} Nh4 {[%emt 0:03:15]} 44. Rd3 {[%emt 0:00:12]} Nf5 {[%emt 0:00:48]} 45. Qh3 {[%emt 0:00:05]} Be4 {[%emt 0:00:38]} 46. Rxc3 {[%emt 0:00:06]} Qa2 {[%emt 0:00:06]} 47. Rc8 {[%emt 0:00:00]} Bxc2 {[%emt 0:00:58]} 48. Qc3 {[%emt 0:00:28]} Be4+ {[%emt 0:01:01]} 49. Ke1 {[%emt 0:00:00]} Ne7 {[%emt 0:00:47]} 50. Re8 {[%emt 0:02:03]} Qh2 {[%emt 0:01:15]} 51. f5 {[%emt 0:02:18]} Qg1+ {[%emt 0:00:44]} 52. Ke2 {[%emt 0:00:15]} Qg2+ {[%emt 0:00:05]} 53. Ke1 {[%emt 0:00:11]} Bf3 {[%emt 0:00:36]} 54. Qd3 {[%emt 0:00:18]} Qg3+ {[%emt 0:01:32]} 55. Kd2 {[%emt 0:01:49]} Qf2+ {[%emt 0:00:29]} 56. Kc3 {[%emt 0:00:07]} Qe1+ {[%emt 0:01:18]} 57. Kb2 {[%emt 0:01:03]} Bd5 {[%emt 0:00:49]} 58. f6 {[%emt 0:00:46]} Nc6 {[%emt 0:00:56]} 59. Qc3 {[%emt 0:00:29]} Qe2+ {[%emt 0:00:00]} 60. Bd2 {[%emt 0:00:05]} Bc4 {[%emt 0:00:37]} 61. Qe3 {[%emt 0:00:26]} Qd1 {[%emt 0:00:50]} 62. b5 {[%emt 0:00:44]} Bxb5 {[%emt 0:00:37]} 63. Bb4 {[%emt 0:00:26]} Nxb4 {[%emt 0:00:34]} 64. Rxf8+ {[%emt 0:00:06]} Kxf8 {[%emt 0:00:02]} 65. Qc5+ {[%emt 0:00:06]} 1-0

[Event "Eurasia Open Cup 2019"]
[Site "Ekaterinburg"]
[Date "2019.08.03"]
[Round "4.3"]
[White "Bocharov, Ivan"]
[Black "Gleizerov, Evgeny"]
[Result "1/2-1/2"]
[ECO "A26"]
[WhiteElo "2559"]
[BlackElo "2498"]
[Annotator "ChessBase"]
[PlyCount "88"]
[EventDate "2019.07.31"]
[EventType "swiss"]
[EventCountry "RUS"]
[SourceTitle "playchess.com"]
[Source "ChessBase"]
[SourceQuality "1"]
[TimeControl "5400+30"]

1. c4 {[%emt 0:00:00]} e5 {[%emt 0:00:00]} 2. d3 {[%emt 0:00:00]} Nc6 {[%emt 0:00:00]} 3. Nf3 {[%emt 0:00:00]} g6 {[%emt 0:00:27]} 4. Nc3 {[%emt 0:00:01]} Bg7 {[%emt 0:00:07]} 5. g3 {[%emt 0:01:02]} Nf6 {[%emt 0:01:34]} 6. Bg2 {[%emt 0:01:54]} O-O {[%emt 0:00:00]} 7. O-O {[%emt 0:00:18]} d6 {[%emt 0:00:00]} 8. Rb1 {[%emt 0:00:58]} a5 {[%emt 0:00:35]} 9. a3 {[%emt 0:00:43]} Re8 {[%emt 0:00:06]} 10. b4 {[%emt 0:01:31]} axb4 {[%emt 0:00:41]} 11. axb4 {[%emt 0:00:01]} e4 {[%emt 0:00:00]} 12. Ng5 {[%emt 0:12:46]} exd3 {[%emt 0:00:10]} 13. exd3 {[%emt 0:00:25]} Nd4 {[%emt 0:07:42]} 14. h3 {[%emt 0:03:55]} c6 {[%emt 0:04:17]} 15. b5 {[%emt 0:09:45]} d5 {[%emt 0:04:40]} 16. bxc6 {[%emt 0:04:23]} bxc6 {[%emt 0:00:25]} 17. cxd5 {[%emt 0:06:52]} Nxd5 {[%emt 0:02:15]} 18. Nge4 {[%emt 0:01:01]} Nxc3 {[%emt 0:07:09]} 19. Nxc3 {[%emt 0:00:02]} Ba6 {[%emt 0:02:38]} 20. Ne4 {[%emt 0:04:43]} Ne6 {[%emt 0:02:50]} 21. Bb2 {[%emt 0:08:59]} Bxd3 {[%emt 0:05:40]} 22. Nf6+ {[%emt 0:00:46]} Bxf6 {[%emt 0:00:28]} 23. Bxf6 {[%emt 0:00:02]} Qxf6 {[%emt 0:00:47]} 24. Qxd3 {[%emt 0:00:02]} Nd4 {[%emt 0:07:03]} 25. Qc4 {[%emt 0:03:56]} Nf3+ {[%emt 0:06:47]} 26. Bxf3 {[%emt 0:03:05]} Qxf3 {[%emt 0:00:15]} 27. Rb3 {[%emt 0:00:01]} Qf6 {[%emt 0:05:16]} 28. Kg2 {[%emt 0:01:57]} Re6 {[%emt 0:05:47]} 29. Rf3 {[%emt 0:00:38]} Qe5 {[%emt 0:01:59]} 30. Rd1 {[%emt 0:08:43]} Rf6 {[%emt 0:02:00]} 31. Rxf6 {[%emt 0:04:07]} Qxf6 {[%emt 0:00:39]} 32. Rc1 {[%emt 0:00:23]} Rc8 {[%emt 0:00:56]} 33. Qc5 {[%emt 0:00:14]} h5 {[%emt 0:00:00]} 34. h4 {[%emt 0:01:29]} Qe6 {[%emt 0:00:42]} 35. Kh2 {[%emt 0:01:57]} Qe4 {[%emt 0:01:05]} 36. Rc4 {[%emt 0:00:02]} Qe1 {[%emt 0:01:34]} 37. Rc1 {[%emt 0:00:02]} Qe2 {[%emt 0:00:53]} 38. Rc2 {[%emt 0:00:01]} Qf3 {[%emt 0:00:08]} 39. Rc3 {[%emt 0:00:02]} Qf6 {[%emt 0:00:00]} 40. Kg2 {[%emt 0:00:21]} Kg7 {[%emt 0:00:00]} 41. Rc2 {[%emt 0:00:31]} Qe6 {[%emt 0:02:19]} 42. Rc4 {[%emt 0:00:44]} Rc7 {[%emt 0:01:11]} 43. Rc1 {[%emt 0:03:17]} f6 {[%emt 0:01:12]} 44. Kh2 {[%emt 0:00:31]} Qe7 {[%emt 0:02:21]} 1/2-1/2

[Event "Eurasia Open Cup 2019"]
[Site "Ekaterinburg"]
[Date "2019.08.03"]
[Round "4.4"]
[White "Drygalov, Sergey"]
[Black "Zhigalko, Andrey"]
[Result "1-0"]
[ECO "C60"]
[WhiteElo "2492"]
[BlackElo "2549"]
[Annotator "ChessBase"]
[PlyCount "117"]
[EventDate "2019.07.31"]
[EventType "swiss"]
[EventCountry "RUS"]
[SourceTitle "playchess.com"]
[Source "ChessBase"]
[SourceQuality "1"]
[TimeControl "5400+30"]

1. e4 {[%emt 0:00:00]} e5 {[%emt 0:00:00]} 2. Nf3 {[%emt 0:00:00]} Nc6 {[%emt 0:00:03]} 3. Bb5 {[%emt 0:00:00]} g6 {[%emt 0:00:34]} 4. d4 {[%emt 0:02:07]} exd4 {[%emt 0:00:35]} 5. Bg5 {[%emt 0:00:06]} Be7 {[%emt 0:00:00]} 6. Bxe7 {[%emt 0:00:09]} Qxe7 {[%emt 0:00:04]} 7. Bxc6 {[%emt 0:00:06]} dxc6 {[%emt 0:00:09]} 8. Qxd4 {[%emt 0:00:05]} Nf6 {[%emt 0:00:10]} 9. Nc3 {[%emt 0:00:45]} Bg4 {[%emt 0:01:21]} 10. Nd2 {[%emt 0:08:46]} c5 {[%emt 0:00:28]} 11. Qe3 {[%emt 0:00:12]} O-O-O {[%emt 0:01:55]} 12. h3 {[%emt 0:00:44]} Bd7 {[%emt 0:18:45]} 13. O-O-O {[%emt 0:14:00]} Bc6 {[%emt 0:06:35]} 14. f3 {[%emt 0:06:33]} b6 {[%emt 0:14:45]} 15. Nc4 {[%emt 0:02:19]} Nh5 {[%emt 0:14:06]} 16. g4 {[%emt 0:07:23]} Ng7 {[%emt 0:08:01]} 17. f4 {[%emt 0:09:13]} Bb7 {[%emt 0:14:03]} 18. Rhe1 {[%emt 0:20:09]} Rhe8 {[%emt 0:01:11]} 19. Rxd8+ {[%emt 0:09:12]} Qxd8 {[%emt 0:04:02]} 20. Ne5 {[%emt 0:05:32]} Ne6 {[%emt 0:07:24]} 21. Nf3 {[%emt 0:04:02]} Qd6 {[%emt 0:03:08]} 22. e5 {[%emt 0:00:32]} Qc6 {[%emt 0:00:28]} 23. Nd2 {[%emt 0:01:30]} Nd4 {[%emt 0:01:31]} 24. Nde4 {[%emt 0:00:10]} Rd8 {[%emt 0:00:35]} 25. Rd1 {[%emt 0:01:50]} b5 {[%emt 0:00:21]} 26. b4 {[%emt 0:00:45]} cxb4 {[%emt 0:00:31]} 27. Rxd4 {[%emt 0:02:28]} Rxd4 {[%emt 0:00:53]} 28. Qxd4 {[%emt 0:00:09]} bxc3 {[%emt 0:01:14]} 29. Nxc3 {[%emt 0:00:05]} a5 {[%emt 0:00:03]} 30. a3 {[%emt 0:00:05]} Qh1+ {[%emt 0:00:58]} 31. Kb2 {[%emt 0:00:27]} Qxh3 {[%emt 0:00:35]} 32. Qc5 {[%emt 0:00:05]} Qh4 {[%emt 0:00:23]} 33. Nxb5 {[%emt 0:00:33]} Qd8 {[%emt 0:01:01]} 34. Nd6+ {[%emt 0:04:07]} Kb8 {[%emt 0:00:00]} 35. Nxf7 {[%emt 0:01:14]} Qd7 {[%emt 0:00:00]} 36. Nh6 {[%emt 0:00:13]} Be4 {[%emt 0:00:37]} 37. Qxa5 {[%emt 0:00:42]} Kc8 {[%emt 0:01:00]} 38. Qb4 {[%emt 0:00:49]} Qc6 {[%emt 0:00:30]} 39. Qf8+ {[%emt 0:00:11]} Kb7 {[%emt 0:00:14]} 40. Qb4+ {[%emt 0:00:25]} Kc8 {[%emt 0:00:08]} 41. Qb3 {[%emt 0:00:35]} Bd5 {[%emt 0:00:04]} 42. Qc3 {[%emt 0:00:33]} Qb5+ {[%emt 0:01:05]} 43. Qb4 {[%emt 0:00:12]} Qe2 {[%emt 0:00:52]} 44. Qc5 {[%emt 0:00:03]} c6 {[%emt 0:00:59]} 45. Ng8 {[%emt 0:00:52]} Qxg4 {[%emt 0:00:04]} 46. Ne7+ {[%emt 0:00:44]} Kb8 {[%emt 0:00:24]} 47. Qb6+ {[%emt 0:00:00]} Ka8 {[%emt 0:00:33]} 48. Qa5+ {[%emt 0:01:26]} Kb8 {[%emt 0:00:01]} 49. Qd8+ {[%emt 0:00:26]} Kb7 {[%emt 0:01:00]} 50. Nxd5 {[%emt 0:00:34]} cxd5 {[%emt 0:00:33]} 51. Qxd5+ {[%emt 0:00:34]} Ka7 {[%emt 0:00:34]} 52. Qc5+ {[%emt 0:00:03]} Kb7 {[%emt 0:00:28]} 53. Qe7+ {[%emt 0:00:11]} Kc8 {[%emt 0:00:23]} 54. Qf8+ {[%emt 0:00:06]} Kb7 {[%emt 0:00:36]} 55. Qf7+ {[%emt 0:00:11]} Kc8 {[%emt 0:00:56]} 56. Qg8+ {[%emt 0:00:37]} Kd7 {[%emt 0:00:36]} 57. Qxh7+ {[%emt 0:00:32]} Ke6 {[%emt 0:00:30]} 58. Qg8+ {[%emt 0:00:00]} Ke7 {[%emt 0:00:00]} 59. Qg7+ {[%emt 0:00:16]} 1-0

[Event "Eurasia Open Cup 2019"]
[Site "Ekaterinburg"]
[Date "2019.08.03"]
[Round "4.5"]
[White "Kostenko, Petr"]
[Black "Sargsyan, Shant"]
[Result "0-1"]
[ECO "C83"]
[WhiteElo "2471"]
[BlackElo "2529"]
[Annotator "ChessBase"]
[PlyCount "125"]
[EventDate "2019.07.31"]
[EventType "swiss"]
[EventCountry "RUS"]
[SourceTitle "playchess.com"]
[Source "ChessBase"]
[SourceQuality "1"]
[TimeControl "5400+30"]

1. e4 {[%emt 0:07:14]} e5 {[%emt 0:00:58]} 2. Nf3 {[%emt 0:00:44]} Nc6 {[%emt 0:00:00]} 3. Bb5 {[%emt 0:00:00]} a6 {[%emt 0:00:23]} 4. Ba4 {[%emt 0:00:05]} Nf6 {[%emt 0:00:29]} 5. O-O {[%emt 0:00:15]} Nxe4 {[%emt 0:00:45]} 6. d4 {[%emt 0:00:13]} b5 {[%emt 0:00:11]} 7. Bb3 {[%emt 0:00:06]} d5 {[%emt 0:00:07]} 8. dxe5 {[%emt 0:00:08]} Be6 {[%emt 0:00:08]} 9. c3 {[%emt 0:00:12]} Be7 {[%emt 0:03:34]} 10. Bf4 {[%emt 0:00:27]} O-O {[%emt 0:02:58]} 11. Nd4 {[%emt 0:00:14]} Qd7 {[%emt 0:11:19]} 12. f3 {[%emt 0:07:16]} Nc5 {[%emt 0:01:23]} 13. Bc2 {[%emt 0:00:27]} Rfd8 {[%emt 0:03:56]} 14. Nd2 {[%emt 0:18:40]} Nxd4 {[%emt 0:07:05]} 15. cxd4 {[%emt 0:00:35]} Na4 {[%emt 0:00:19]} 16. Qb1 {[%emt 0:01:17]} g6 {[%emt 0:04:27]} 17. Be3 {[%emt 0:00:29]} c5 {[%emt 0:03:33]} 18. f4 {[%emt 0:01:37]} Bf5 {[%emt 0:02:36]} 19. Nf3 {[%emt 0:04:24]} c4 {[%emt 0:04:15]} 20. h3 {[%emt 0:03:13]} h5 {[%emt 0:01:55]} 21. Bf2 {[%emt 0:00:31]} Bxc2 {[%emt 0:01:14]} 22. Qxc2 {[%emt 0:00:38]} Qf5 {[%emt 0:08:33]} 23. Qxf5 {[%emt 0:00:00]} gxf5 {[%emt 0:00:32]} 24. Bh4 {[%emt 0:09:48]} Bxh4 {[%emt 0:01:08]} 25. Nxh4 {[%emt 0:00:00]} Nxb2 {[%emt 0:04:20]} 26. Nxf5 {[%emt 0:00:00]} Kh7 {[%emt 0:00:03]} 27. Rf3 {[%emt 0:00:12]} b4 {[%emt 0:05:30]} 28. Ne3 {[%emt 0:01:09]} c3 {[%emt 0:01:08]} 29. f5 {[%emt 0:12:22]} Nc4 {[%emt 0:02:51]} 30. g4 {[%emt 0:00:45]} Nxe3 {[%emt 0:01:16]} 31. Rxe3 {[%emt 0:07:45]} Rg8 {[%emt 0:05:45]} 32. Kf2 {[%emt 0:00:35]} Kh6 {[%emt 0:00:53]} 33. e6 {[%emt 0:00:00]} hxg4 {[%emt 0:06:46]} 34. exf7 {[%emt 0:03:51]} g3+ {[%emt 0:00:50]} 35. Kf3 {[%emt 0:00:09]} Rgf8 {[%emt 0:00:54]} 36. Re6+ {[%emt 0:04:47]} Kg5 {[%emt 0:00:07]} 37. h4+ {[%emt 0:01:45]} Kh5 {[%emt 0:01:55]} 38. Kxg3 {[%emt 0:01:24]} Rxf7 {[%emt 0:00:40]} 39. Kf4 {[%emt 0:00:00]} Raf8 {[%emt 0:00:24]} 40. Re5 {[%emt 0:00:32]} Rg7 {[%emt 0:04:16]} 41. f6+ {[%emt 0:00:00]} Kg6 {[%emt 0:02:57]} 42. h5+ {[%emt 0:04:13]} Kh6 {[%emt 0:01:35]} 43. Re6 {[%emt 0:00:56]} Rg2 {[%emt 0:00:00]} 44. Rxa6 {[%emt 0:00:00]} Kxh5 {[%emt 0:01:16]} 45. Rf1 {[%emt 0:00:00]} c2 {[%emt 0:00:46]} 46. Rc6 {[%emt 0:01:20]} Kg6 {[%emt 0:02:00]} 47. Ke5 {[%emt 0:00:41]} Re2+ {[%emt 0:01:23]} 48. Kxd5 {[%emt 0:01:01]} Rd2 {[%emt 0:02:45]} 49. Rg1+ {[%emt 0:00:00]} Kf5 {[%emt 0:01:31]} 50. Rf1+ {[%emt 0:00:38]} Kg6 {[%emt 0:00:01]} 51. Rg1+ {[%emt 0:05:43]} Kf5 {[%emt 0:00:05]} 52. Rc1 {[%emt 0:00:41]} Kg6 {[%emt 0:00:02]} 53. R1xc2 {[%emt 0:00:00]} Rd8+ {[%emt 0:00:04]} 54. Ke4 {[%emt 0:00:00]} R8xd4+ {[%emt 0:02:37]} 55. Ke5 {[%emt 0:05:24]} R4d3 {[%emt 0:00:00]} 56. Rxd2 {[%emt 0:01:03]} Rxd2 {[%emt 0:00:22]} 57. Ra6 {[%emt 0:00:24]} Re2+ {[%emt 0:01:05]} 58. Kd5 {[%emt 0:00:14]} Kf7 {[%emt 0:00:01]} 59. Kc5 {[%emt 0:00:50]} Rb2 {[%emt 0:00:25]} 60. Kc4 {[%emt 0:00:00]} Kg6 {[%emt 0:00:09]} 61. Kd5 {[%emt 0:01:19]} Kf7 {[%emt 0:00:11]} 62. Ke5 {[%emt 0:00:33]} Re2+ {[%emt 0:00:06]} 63. Kd4 {[%emt 0:00:05]} 0-1

[Event "Eurasia Open Cup 2019"]
[Site "Ekaterinburg"]
[Date "2019.08.03"]
[Round "4.6"]
[White "Kunin, Vitaly"]
[Black "Kyshtymov, Daniil"]
[Result "1-0"]
[ECO "E70"]
[WhiteElo "2527"]
[BlackElo "2176"]
[Annotator "ChessBase"]
[PlyCount "77"]
[EventDate "2019.07.31"]
[EventType "swiss"]
[EventCountry "RUS"]
[SourceTitle "playchess.com"]
[Source "ChessBase"]
[SourceQuality "1"]
[TimeControl "5400+30"]

1. d4 {[%emt 0:00:10]} Nf6 {[%emt 0:00:00]} 2. c4 {[%emt 0:00:00]} g6 {[%emt 0:00:00]} 3. Nc3 {[%emt 0:00:06]} Bg7 {[%emt 0:00:00]} 4. e4 {[%emt 0:00:39]} d6 {[%emt 0:00:00]} 5. Nge2 {[%emt 0:00:00]} O-O {[%emt 0:01:26]} 6. Ng3 {[%emt 0:00:03]} e5 {[%emt 0:16:57]} 7. d5 {[%emt 0:00:15]} a5 {[%emt 0:13:37]} 8. Be2 {[%emt 0:00:44]} Na6 {[%emt 0:00:50]} 9. h4 {[%emt 0:00:42]} h5 {[%emt 0:01:57]} 10. Bg5 {[%emt 0:00:42]} Qe8 {[%emt 0:06:17]} 11. Qd2 {[%emt 0:00:26]} Kh7 {[%emt 0:11:36]} 12. f3 {[%emt 0:01:46]} Bd7 {[%emt 0:02:21]} 13. Nb5 {[%emt 0:02:24]} a4 {[%emt 0:09:24]} 14. O-O {[%emt 0:06:54]} Kg8 {[%emt 0:15:11]} 15. Bh6 {[%emt 0:10:27]} Nh7 {[%emt 0:02:32]} 16. Kf2 {[%emt 0:14:23]} Qd8 {[%emt 0:03:52]} 17. Bxg7 {[%emt 0:01:48]} Kxg7 {[%emt 0:00:01]} 18. Rh1 {[%emt 0:00:11]} Nc5 {[%emt 0:03:38]} 19. Nc3 {[%emt 0:02:52]} c6 {[%emt 0:04:04]} 20. dxc6 {[%emt 0:03:22]} Bxc6 {[%emt 0:00:46]} 21. Rhd1 {[%emt 0:03:39]} Qb6 {[%emt 0:01:44]} 22. Qe3 {[%emt 0:01:48]} Rfd8 {[%emt 0:01:40]} 23. Rd2 {[%emt 0:01:03]} Rd7 {[%emt 0:01:50]} 24. Rad1 {[%emt 0:00:55]} Rad8 {[%emt 0:00:33]} 25. Kg1 {[%emt 0:04:35]} Nf8 {[%emt 0:00:18]} 26. Bf1 {[%emt 0:00:33]} Nfe6 {[%emt 0:01:08]} 27. Nce2 {[%emt 0:06:55]} Qa6 {[%emt 0:00:00]} 28. f4 {[%emt 0:01:28]} Qxc4 {[%emt 0:00:18]} 29. f5 {[%emt 0:00:58]} Nf8 {[%emt 0:00:53]} 30. Nxh5+ {[%emt 0:00:02]} gxh5 {[%emt 0:00:22]} 31. Ng3 {[%emt 0:02:18]} Qb4 {[%emt 0:00:35]} 32. Nxh5+ {[%emt 0:00:17]} Kh7 {[%emt 0:01:03]} 33. Qg5 {[%emt 0:00:54]} Ng6 {[%emt 0:00:33]} 34. fxg6+ {[%emt 0:01:16]} fxg6 {[%emt 0:00:15]} 35. Rxd6 {[%emt 0:01:56]} Rxd6 {[%emt 0:00:10]} 36. Qe7+ {[%emt 0:00:25]} Kh6 {[%emt 0:01:07]} 37. Qg7+ {[%emt 0:00:22]} Kxh5 {[%emt 0:00:08]} 38. Be2+ {[%emt 0:00:16]} Kxh4 {[%emt 0:00:05]} 39. Qh6+ {[%emt 0:00:09]} 1-0

[Event "Eurasia Open Cup 2019"]
[Site "Ekaterinburg"]
[Date "2019.08.03"]
[Round "4.9"]
[White "Bivol, Alina"]
[Black "Shaposhnikov, Evgeny"]
[Result "0-1"]
[ECO "B41"]
[WhiteElo "2391"]
[BlackElo "2575"]
[Annotator "ChessBase"]
[PlyCount "130"]
[EventDate "2019.07.31"]
[EventType "swiss"]
[EventCountry "RUS"]
[SourceTitle "playchess.com"]
[Source "ChessBase"]
[SourceQuality "1"]
[TimeControl "5400+30"]

1. e4 {[%emt 0:00:00]} c5 {[%emt 0:04:05]} 2. Nf3 {[%emt 0:00:00]} e6 {[%emt 0:07:44]} 3. d4 {[%emt 0:00:04]} cxd4 {[%emt 0:00:04]} 4. Nxd4 {[%emt 0:00:00]} a6 {[%emt 0:00:46]} 5. g3 {[%emt 0:00:00]} Nc6 {[%emt 0:01:21]} 6. Bg2 {[%emt 0:02:09]} h5 {[%emt 0:11:22]} 7. Nc3 {[%emt 0:08:10]} h4 {[%emt 0:00:45]} 8. Be3 {[%emt 0:03:13]} Nf6 {[%emt 0:01:17]} 9. O-O {[%emt 0:19:11]} hxg3 {[%emt 0:00:11]} 10. hxg3 {[%emt 0:01:01]} Ne5 {[%emt 0:00:40]} 11. Bg5 {[%emt 0:03:03]} Bc5 {[%emt 0:00:24]} 12. Nb3 {[%emt 0:09:38]} Ba7 {[%emt 0:03:38]} 13. Qe2 {[%emt 0:01:15]} Qc7 {[%emt 0:01:06]} 14. Nd1 {[%emt 0:06:29]} b5 {[%emt 0:04:17]} 15. Be3 {[%emt 0:03:51]} Nfg4 {[%emt 0:04:52]} 16. Bxa7 {[%emt 0:00:42]} Qxa7 {[%emt 0:00:32]} 17. Nc1 {[%emt 0:06:06]} Bb7 {[%emt 0:03:39]} 18. Nd3 {[%emt 0:00:03]} Qd4 {[%emt 0:00:38]} 19. Nxe5 {[%emt 0:07:53]} Nxe5 {[%emt 0:03:04]} 20. c3 {[%emt 0:02:28]} Qc5 {[%emt 0:00:07]} 21. Qe3 {[%emt 0:01:36]} Rc8 {[%emt 0:03:23]} 22. Qxc5 {[%emt 0:02:48]} Rxc5 {[%emt 0:02:14]} 23. a4 {[%emt 0:02:10]} Ke7 {[%emt 0:01:05]} 24. axb5 {[%emt 0:06:10]} Rxb5 {[%emt 0:01:53]} 25. Re1 {[%emt 0:01:27]} f5 {[%emt 0:02:56]} 26. f3 {[%emt 0:00:45]} f4 {[%emt 0:01:51]} 27. g4 {[%emt 0:03:08]} a5 {[%emt 0:04:47]} 28. Re2 {[%emt 0:01:01]} Bc6 {[%emt 0:00:30]} 29. Nf2 {[%emt 0:01:32]} Kf6 {[%emt 0:00:19]} 30. Ra2 {[%emt 0:00:39]} g5 {[%emt 0:00:31]} 31. Rd2 {[%emt 0:00:58]} Rhb8 {[%emt 0:02:08]} 32. Nd1 {[%emt 0:00:47]} d5 {[%emt 0:00:32]} 33. Rd4 {[%emt 0:01:02]} dxe4 {[%emt 0:01:07]} 34. fxe4 {[%emt 0:03:15]} Nxg4 {[%emt 0:01:34]} 35. Rd6 {[%emt 0:00:34]} Ne5 {[%emt 0:01:44]} 36. Bf1 {[%emt 0:00:05]} Rc5 {[%emt 0:00:36]} 37. Nf2 {[%emt 0:02:23]} Ke7 {[%emt 0:02:23]} 38. Rd1 {[%emt 0:00:08]} g4 {[%emt 0:00:00]} 39. Nd3 {[%emt 0:00:55]} Nxd3 {[%emt 0:00:40]} 40. Rxd3 {[%emt 0:00:50]} Bxe4 {[%emt 0:00:55]} 41. Rd4 {[%emt 0:00:48]} Re5 {[%emt 0:00:38]} 42. Raa4 {[%emt 0:00:02]} Bf5 {[%emt 0:00:37]} 43. b4 {[%emt 0:00:17]} axb4 {[%emt 0:00:38]} 44. cxb4 {[%emt 0:00:32]} f3 {[%emt 0:01:35]} 45. Kf2 {[%emt 0:00:00]} Kf6 {[%emt 0:00:23]} 46. b5 {[%emt 0:00:45]} Rbxb5 {[%emt 0:02:22]} 47. Bxb5 {[%emt 0:00:17]} Rxb5 {[%emt 0:00:17]} 48. Rd2 {[%emt 0:00:43]} Kg5 {[%emt 0:00:20]} 49. Ra8 {[%emt 0:00:33]} Kf4 {[%emt 0:00:45]} 50. Rd4+ {[%emt 0:00:00]} Ke5 {[%emt 0:06:43]} 51. Rd2 {[%emt 0:00:56]} Rb1 {[%emt 0:00:02]} 52. Ke3 {[%emt 0:00:38]} Rf1 {[%emt 0:02:18]} 53. Ra5+ {[%emt 0:01:39]} Kf6 {[%emt 0:01:24]} 54. Kf4 {[%emt 0:00:00]} Re1 {[%emt 0:02:35]} 55. Kg3 {[%emt 0:00:00]} Kg5 {[%emt 0:02:00]} 56. Ra8 {[%emt 0:01:59]} Rh1 {[%emt 0:05:10]} 57. Rg8+ {[%emt 0:00:38]} Kf6 {[%emt 0:00:02]} 58. Kf4 {[%emt 0:00:16]} Re1 {[%emt 0:00:34]} 59. Kg3 {[%emt 0:01:03]} Ke5 {[%emt 0:00:24]} 60. Rb8 {[%emt 0:00:09]} Rh1 {[%emt 0:01:00]} 61. Rb5+ {[%emt 0:00:55]} Ke4 {[%emt 0:00:30]} 62. Rd8 {[%emt 0:00:34]} Rh3+ {[%emt 0:04:22]} 63. Kf2 {[%emt 0:00:00]} g3+ {[%emt 0:00:18]} 64. Kg1 {[%emt 0:00:48]} f2+ {[%emt 0:00:52]} 65. Kg2 {[%emt 0:00:24]} Rh2+ {[%emt 0:00:15]} 0-1